{"text_format":"1","workbook":"xlsx","n_sheets":3,"sheets":["справочник","Ввод данных","1"],"not_rendered":{"charts":0,"images":1,"macros":1,"external_links":0,"defined_names":3,"comments":0,"pivot_tables":0},"unopened":[],"bounds":{"document_bytes":16777216,"sheet_cells":100000,"rows_first":2000,"rows_last":500,"rows_between":2000,"halvings":0,"cell_chars":16384,"cell_head_chars":4096},"cells_cut":0,"cells_raw":0,"read":"whole","date_system":"1900"}

{"sheet":"справочник","index":0,"n_rows":62,"n_cols":10,"rows_kept":62,"cut":false,"hidden":false,"merged":[]}
[]
[null,"Менеджер","телефон",null,null,null,null,"Водители",null,"Бланк №"]
[null,"Сидоренко Татьяна Владимировна","+79204677525; +7(47396)5-13-44",null,null,null,null,"Усов В.В.",null,1]
[null,"Лебедева Юлия Леонидовна","+79204678407; +7(47396)5-13-44",null,null,null,null,"Смаженко А.Г.",null,2]
[null,"Переверзева Нина Афанасьевна","+79204301080; +7(47396)2-74-05",null,null,null,null,"Брылев Р.Н.",null,3]
[null,null,null,null,null,null,null,null,null,4]
[null,null,null,null,null,null,null,null,null,5]
[null,null,null,null,null,null,null,null,null,6]
[null,null,null,null,null,"Автомобиль",null,"Фирма ",null,7]
[null,null,null,null,null,"Рено Логан",null,"ООО \"РТК-Пласт\"",null,8]
[null,null,null,null,null,"ГАЗ Валдай",null,"ООО \"РТК-плюс\"",null,9]
[null,null,null,null,null,"ГАЗ NEXT",null,"ООО \"Нима-трейд\"",null,10]
[null,null,null,null,null,"Наёмный тр-т",null,"ИП Назаров",null,11]
[null,null,null,null,null,null,null,null,null,12]
[null,null,null,null,null,null,null,null,null,13]
[null,null,null,null,null,null,null,null,null,14]
[null,null,null,null,null,null,null,null,null,15]
[null,null,null,null,null,null,null,null,null,16]
[null,null,null,null,null,null,null,null,null,17]
[null,null,null,null,null,null,null,null,null,18]
[null,null,null,null,null,null,null,null,null,19]
[null,null,null,null,null,null,null,null,null,20]
[null,null,null,null,null,null,null,null,null,21]
[null,null,null,null,null,null,null,null,null,22]
[null,null,null,null,null,null,null,null,null,23]
[null,null,null,null,null,null,null,null,null,24]
[null,null,null,null,null,null,null,null,null,25]
[null,null,null,null,null,null,null,null,null,26]
[null,null,null,null,null,null,null,null,null,27]
[null,null,null,null,null,null,null,null,null,28]
[null,null,null,null,null,null,null,null,null,29]
[null,null,null,null,null,null,null,null,null,30]
[null,null,null,null,null,null,null,null,null,31]
[null,null,null,null,null,null,null,null,null,32]
[null,null,null,null,null,null,null,null,null,33]
[null,null,null,null,null,null,null,null,null,34]
[null,null,null,null,null,null,null,null,null,35]
[null,null,null,null,null,null,null,null,null,36]
[null,null,null,null,null,null,null,null,null,37]
[null,null,null,null,null,null,null,null,null,38]
[null,null,null,null,null,null,null,null,null,39]
[null,null,null,null,null,null,null,null,null,40]
[null,null,null,null,null,null,null,null,null,41]
[null,null,null,null,null,null,null,null,null,42]
[null,null,null,null,null,null,null,null,null,43]
[null,null,null,null,null,null,null,null,null,44]
[null,null,null,null,null,null,null,null,null,45]
[null,null,null,null,null,null,null,null,null,46]
[null,null,null,null,null,null,null,null,null,47]
[null,null,null,null,null,null,null,null,null,48]
[null,null,null,null,null,null,null,null,null,49]
[null,null,null,null,null,null,null,null,null,50]
[null,null,null,null,null,null,null,null,null,51]
[null,null,null,null,null,null,null,null,null,52]
[null,null,null,null,null,null,null,null,null,53]
[null,null,null,null,null,null,null,null,null,54]
[null,null,null,null,null,null,null,null,null,55]
[null,null,null,null,null,null,null,null,null,56]
[null,null,null,null,null,null,null,null,null,57]
[null,null,null,null,null,null,null,null,null,58]
[null,null,null,null,null,null,null,null,null,59]
[null,null,null,null,null,null,null,null,null,60]

{"sheet":"Ввод данных","index":1,"n_rows":6,"n_cols":14,"rows_kept":6,"cut":false,"hidden":false,"merged":[]}
[]
["Бланк отгрузки №","номер заказа","Дата выдачи заказа","Дата отгрузки","Наименование товара","Количество по заказу","Вес, кг.","Клиент","Выписка по фирме","Адрес","Время выгрузки","Контактное лицо, телефон","Цена ","Замечания"]
[1,null,"2020-12-25","2020-12-25","Каширин/фасовка/прозр/24х37х10",10000000,759,"Каширин","ООО \"РТК-Пласт\"","Воронеж","31.04.20 11:30","Вася 02",86,"херово"]
[1,null,null,null,"Ника Д/майка/белый/28х45х0,012",22000,398,"Ника д","ООО \"РТК-Пласт\"","Россошь"]
[1]
[2]

{"sheet":"1","index":2,"n_rows":20,"n_cols":15,"rows_kept":20,"cut":false,"hidden":false,"merged":[[6,12,6,13],[6,14,6,18],[5,0,5,1],[4,12,5,13],[4,14,5,18],[6,0,6,1],[8,12,8,13],[8,14,8,18],[7,12,7,13],[7,14,7,18],[9,12,9,13],[9,14,9,18],[10,12,11,13],[10,14,11,18]]}
["Бланк-задание погрузо-разгрузочных работ для отправки (получения) груза для мастера"]
["участка погрузочно-разгрузочных работ, водителя, бухгалтерии! Обязательно!!!"]
["При возникновении вопросов о: грузе, месте назначения, названии фирмы, цене, дате выезда, "]
["водителе, порядке разгрузки-погрузки и т.п. – обращаться в КО. О НЕисполнении "]
["любого пункта задании информировать ответственное лицо к/о",null,null,null,null,null,null,null,null,null,null,null,"Менеджер",null,"Сидоренко Татьяна Владимировна"]
["Телефон для связи:",null,{"$f":"INDEX(телефонмен,MATCH(E6,менеджер,0),2)","v":"+79204677525; +7(47396)5-13-44"},"Менеджер:",{"$f":"O5","v":"Сидоренко Татьяна Владимировна"},"Транспорт:",{"$f":"O10","v":"Рено Логан"}]
["Водитель: ",null,{"$f":"O7","v":"Усов В.В."},"Дата выезда:",{"$f":"O9","v":"30-31.04.20"},null,null,null,null,null,null,null,"Водитель",null,"Усов В.В."]
[null,null,null,null,null,null,null,null,null,null,null,null,"Маршрут",null,"Тамбов"]
["Порядок погрузки","Порядок разгрузки","Наименование товара, задание","Количество по заказу","Клиент","Выписка по фирме","Адрес","Время выгрузки","Контактное лицо, телефон","Замечания","Цена","Вес, кг","Дата выезда",null,"30-31.04.20"]
[null,null,{"$f":"IFERROR(INDEX('Ввод данных'!E:E,SMALL(IF('Ввод данных'!$A$3:$A$101=1,ROW('Ввод данных'!$A$3:$A$101)),ROW(C1))),\"\")","v":"Каширин/фасовка/прозр/24х37х10"},{"$f":"IFERROR(INDEX('Ввод данных'!F:F,SMALL(IF('Ввод данных'!$A$3:$A$101=1,ROW('Ввод данных'!$A$3:$A$101)),ROW(D1))),\"\")","v":10000000},{"$f":"IFERROR(INDEX('Ввод данных'!H:H,SMALL(IF('Ввод данных'!$A$3:$A$101=1,ROW('Ввод данных'!$A$3:$A$101)),ROW(E1))),\"\")","v":"Каширин"},{"$f":"IFERROR(INDEX('Ввод данных'!I:I,SMALL(IF('Ввод данных'!$A$3:$A$101=1,ROW('Ввод данных'!$A$3:$A$101)),ROW(F1))),\"\")","v":"ООО \"РТК-Пласт\""},{"$f":"IFERROR(INDEX('Ввод данных'!J:J,SMALL(IF('Ввод данных'!$A$3:$A$101=1,ROW('Ввод данных'!$A$3:$A$101)),ROW(G1))),\"\")","v":"Воронеж"},{"$f":"IFERROR(INDEX('Ввод данных'!K:K,SMALL(IF('Ввод данных'!$A$3:$A$101=1,ROW('Ввод данных'!$A$3:$A$101)),ROW(H1))),\"\")","v":"31.04.20 11:30"},{"$f":"IFERROR(INDEX('Ввод данных'!L:L,SMALL(IF('Ввод данных'!$A$3:$A$101=1,ROW('Ввод данных'!$A$3:$A$101)),ROW(I1))),\"\")","v":"Вася 02"},{"$f":"IFERROR(INDEX('Ввод данных'!N:N,SMALL(IF('Ввод данных'!$A$3:$A$101=1,ROW('Ввод данных'!$A$3:$A$101)),ROW(J1))),\"\")","v":"херово"},{"$f":"IFERROR(INDEX('Ввод данных'!M:M,SMALL(IF('Ввод данных'!$A$3:$A$101=1,ROW('Ввод данных'!$A$3:$A$101)),ROW(K1))),\"\")","v":86},{"$f":"IFERROR(INDEX('Ввод данных'!G:G,SMALL(IF('Ввод данных'!$A$3:$A$101=1,ROW('Ввод данных'!$A$3:$A$101)),ROW(L1))),\"\")","v":759},"Транспорт",null,"Рено Логан"]
[null,null,{"$f":"IFERROR(INDEX('Ввод данных'!E:E,SMALL(IF('Ввод данных'!$A$3:$A$101=1,ROW('Ввод данных'!$A$3:$A$101)),ROW(C2))),\"\")","v":"Ника Д/майка/белый/28х45х0,012"},{"$f":"IFERROR(INDEX('Ввод данных'!F:F,SMALL(IF('Ввод данных'!$A$3:$A$101=1,ROW('Ввод данных'!$A$3:$A$101)),ROW(D2))),\"\")","v":22000},{"$f":"IFERROR(INDEX('Ввод данных'!H:H,SMALL(IF('Ввод данных'!$A$3:$A$101=1,ROW('Ввод данных'!$A$3:$A$101)),ROW(E2))),\"\")","v":"Ника д"},{"$f":"IFERROR(INDEX('Ввод данных'!I:I,SMALL(IF('Ввод данных'!$A$3:$A$101=1,ROW('Ввод данных'!$A$3:$A$101)),ROW(F2))),\"\")","v":"ООО \"РТК-Пласт\""},{"$f":"IFERROR(INDEX('Ввод данных'!J:J,SMALL(IF('Ввод данных'!$A$3:$A$101=1,ROW('Ввод данных'!$A$3:$A$101)),ROW(G2))),\"\")","v":"Россошь"},{"$f":"IFERROR(INDEX('Ввод данных'!K:K,SMALL(IF('Ввод данных'!$A$3:$A$101=1,ROW('Ввод данных'!$A$3:$A$101)),ROW(H2))),\"\")","v":"00:00:00"},{"$f":"IFERROR(INDEX('Ввод данных'!L:L,SMALL(IF('Ввод данных'!$A$3:$A$101=1,ROW('Ввод данных'!$A$3:$A$101)),ROW(I2))),\"\")","v":"00:00:00"},{"$f":"IFERROR(INDEX('Ввод данных'!N:N,SMALL(IF('Ввод данных'!$A$3:$A$101=1,ROW('Ввод данных'!$A$3:$A$101)),ROW(J2))),\"\")","v":0},{"$f":"IFERROR(INDEX('Ввод данных'!M:M,SMALL(IF('Ввод данных'!$A$3:$A$101=1,ROW('Ввод данных'!$A$3:$A$101)),ROW(K2))),\"\")","v":0},{"$f":"IFERROR(INDEX('Ввод данных'!G:G,SMALL(IF('Ввод данных'!$A$3:$A$101=1,ROW('Ввод данных'!$A$3:$A$101)),ROW(L2))),\"\")","v":398},"Общий тоннаж ",null,{"$f":"SUM(Таблица4[Вес, кг])","v":1157}]
[null,null,{"$f":"IFERROR(INDEX('Ввод данных'!E:E,SMALL(IF('Ввод данных'!$A$3:$A$101=1,ROW('Ввод данных'!$A$3:$A$101)),ROW(C3))),\"\")","v":0},{"$f":"IFERROR(INDEX('Ввод данных'!F:F,SMALL(IF('Ввод данных'!$A$3:$A$101=1,ROW('Ввод данных'!$A$3:$A$101)),ROW(D3))),\"\")","v":0},{"$f":"IFERROR(INDEX('Ввод данных'!H:H,SMALL(IF('Ввод данных'!$A$3:$A$101=1,ROW('Ввод данных'!$A$3:$A$101)),ROW(E3))),\"\")","v":0},{"$f":"IFERROR(INDEX('Ввод данных'!I:I,SMALL(IF('Ввод данных'!$A$3:$A$101=1,ROW('Ввод данных'!$A$3:$A$101)),ROW(F3))),\"\")","v":0},{"$f":"IFERROR(INDEX('Ввод данных'!J:J,SMALL(IF('Ввод данных'!$A$3:$A$101=1,ROW('Ввод данных'!$A$3:$A$101)),ROW(G3))),\"\")","v":0},{"$f":"IFERROR(INDEX('Ввод данных'!K:K,SMALL(IF('Ввод данных'!$A$3:$A$101=1,ROW('Ввод данных'!$A$3:$A$101)),ROW(H3))),\"\")","v":"00:00:00"},{"$f":"IFERROR(INDEX('Ввод данных'!L:L,SMALL(IF('Ввод данных'!$A$3:$A$101=1,ROW('Ввод данных'!$A$3:$A$101)),ROW(I3))),\"\")","v":"00:00:00"},{"$f":"IFERROR(INDEX('Ввод данных'!N:N,SMALL(IF('Ввод данных'!$A$3:$A$101=1,ROW('Ввод данных'!$A$3:$A$101)),ROW(J3))),\"\")","v":0},{"$f":"IFERROR(INDEX('Ввод данных'!M:M,SMALL(IF('Ввод данных'!$A$3:$A$101=1,ROW('Ввод данных'!$A$3:$A$101)),ROW(K3))),\"\")","v":0},{"$f":"IFERROR(INDEX('Ввод данных'!G:G,SMALL(IF('Ввод данных'!$A$3:$A$101=1,ROW('Ввод данных'!$A$3:$A$101)),ROW(L3))),\"\")","v":0}]
[null,null,{"$f":"IFERROR(INDEX('Ввод данных'!E:E,SMALL(IF('Ввод данных'!$A$3:$A$101=1,ROW('Ввод данных'!$A$3:$A$101)),ROW(C4))),\"\")","v":""},{"$f":"IFERROR(INDEX('Ввод данных'!F:F,SMALL(IF('Ввод данных'!$A$3:$A$101=1,ROW('Ввод данных'!$A$3:$A$101)),ROW(D4))),\"\")","v":""},{"$f":"IFERROR(INDEX('Ввод данных'!H:H,SMALL(IF('Ввод данных'!$A$3:$A$101=1,ROW('Ввод данных'!$A$3:$A$101)),ROW(E4))),\"\")","v":""},{"$f":"IFERROR(INDEX('Ввод данных'!I:I,SMALL(IF('Ввод данных'!$A$3:$A$101=1,ROW('Ввод данных'!$A$3:$A$101)),ROW(F4))),\"\")","v":""},{"$f":"IFERROR(INDEX('Ввод данных'!J:J,SMALL(IF('Ввод данных'!$A$3:$A$101=1,ROW('Ввод данных'!$A$3:$A$101)),ROW(G4))),\"\")","v":""},{"$f":"IFERROR(INDEX('Ввод данных'!K:K,SMALL(IF('Ввод данных'!$A$3:$A$101=1,ROW('Ввод данных'!$A$3:$A$101)),ROW(H4))),\"\")","v":""},{"$f":"IFERROR(INDEX('Ввод данных'!L:L,SMALL(IF('Ввод данных'!$A$3:$A$101=1,ROW('Ввод данных'!$A$3:$A$101)),ROW(I4))),\"\")","v":""},{"$f":"IFERROR(INDEX('Ввод данных'!N:N,SMALL(IF('Ввод данных'!$A$3:$A$101=1,ROW('Ввод данных'!$A$3:$A$101)),ROW(J4))),\"\")","v":""},{"$f":"IFERROR(INDEX('Ввод данных'!M:M,SMALL(IF('Ввод данных'!$A$3:$A$101=1,ROW('Ввод данных'!$A$3:$A$101)),ROW(K4))),\"\")","v":""},{"$f":"IFERROR(INDEX('Ввод данных'!G:G,SMALL(IF('Ввод данных'!$A$3:$A$101=1,ROW('Ввод данных'!$A$3:$A$101)),ROW(L4))),\"\")","v":""}]
[null,null,{"$f":"IFERROR(INDEX('Ввод данных'!E:E,SMALL(IF('Ввод данных'!$A$3:$A$101=1,ROW('Ввод данных'!$A$3:$A$101)),ROW(C5))),\"\")","v":""},{"$f":"IFERROR(INDEX('Ввод данных'!F:F,SMALL(IF('Ввод данных'!$A$3:$A$101=1,ROW('Ввод данных'!$A$3:$A$101)),ROW(D5))),\"\")","v":""},{"$f":"IFERROR(INDEX('Ввод данных'!H:H,SMALL(IF('Ввод данных'!$A$3:$A$101=1,ROW('Ввод данных'!$A$3:$A$101)),ROW(E5))),\"\")","v":""},{"$f":"IFERROR(INDEX('Ввод данных'!I:I,SMALL(IF('Ввод данных'!$A$3:$A$101=1,ROW('Ввод данных'!$A$3:$A$101)),ROW(F5))),\"\")","v":""},{"$f":"IFERROR(INDEX('Ввод данных'!J:J,SMALL(IF('Ввод данных'!$A$3:$A$101=1,ROW('Ввод данных'!$A$3:$A$101)),ROW(G5))),\"\")","v":""},{"$f":"IFERROR(INDEX('Ввод данных'!K:K,SMALL(IF('Ввод данных'!$A$3:$A$101=1,ROW('Ввод данных'!$A$3:$A$101)),ROW(H5))),\"\")","v":""},{"$f":"IFERROR(INDEX('Ввод данных'!L:L,SMALL(IF('Ввод данных'!$A$3:$A$101=1,ROW('Ввод данных'!$A$3:$A$101)),ROW(I5))),\"\")","v":""},{"$f":"IFERROR(INDEX('Ввод данных'!N:N,SMALL(IF('Ввод данных'!$A$3:$A$101=1,ROW('Ввод данных'!$A$3:$A$101)),ROW(J5))),\"\")","v":""},{"$f":"IFERROR(INDEX('Ввод данных'!M:M,SMALL(IF('Ввод данных'!$A$3:$A$101=1,ROW('Ввод данных'!$A$3:$A$101)),ROW(K5))),\"\")","v":""},{"$f":"IFERROR(INDEX('Ввод данных'!G:G,SMALL(IF('Ввод данных'!$A$3:$A$101=1,ROW('Ввод данных'!$A$3:$A$101)),ROW(L5))),\"\")","v":""}]
[null,null,{"$f":"IFERROR(INDEX('Ввод данных'!E:E,SMALL(IF('Ввод данных'!$A$3:$A$101=1,ROW('Ввод данных'!$A$3:$A$101)),ROW(C6))),\"\")","v":""},{"$f":"IFERROR(INDEX('Ввод данных'!F:F,SMALL(IF('Ввод данных'!$A$3:$A$101=1,ROW('Ввод данных'!$A$3:$A$101)),ROW(D6))),\"\")","v":""},{"$f":"IFERROR(INDEX('Ввод данных'!H:H,SMALL(IF('Ввод данных'!$A$3:$A$101=1,ROW('Ввод данных'!$A$3:$A$101)),ROW(E6))),\"\")","v":""},{"$f":"IFERROR(INDEX('Ввод данных'!I:I,SMALL(IF('Ввод данных'!$A$3:$A$101=1,ROW('Ввод данных'!$A$3:$A$101)),ROW(F6))),\"\")","v":""},{"$f":"IFERROR(INDEX('Ввод данных'!J:J,SMALL(IF('Ввод данных'!$A$3:$A$101=1,ROW('Ввод данных'!$A$3:$A$101)),ROW(G6))),\"\")","v":""},{"$f":"IFERROR(INDEX('Ввод данных'!K:K,SMALL(IF('Ввод данных'!$A$3:$A$101=1,ROW('Ввод данных'!$A$3:$A$101)),ROW(H6))),\"\")","v":""},{"$f":"IFERROR(INDEX('Ввод данных'!L:L,SMALL(IF('Ввод данных'!$A$3:$A$101=1,ROW('Ввод данных'!$A$3:$A$101)),ROW(I6))),\"\")","v":""},{"$f":"IFERROR(INDEX('Ввод данных'!N:N,SMALL(IF('Ввод данных'!$A$3:$A$101=1,ROW('Ввод данных'!$A$3:$A$101)),ROW(J6))),\"\")","v":""},{"$f":"IFERROR(INDEX('Ввод данных'!M:M,SMALL(IF('Ввод данных'!$A$3:$A$101=1,ROW('Ввод данных'!$A$3:$A$101)),ROW(K6))),\"\")","v":""},{"$f":"IFERROR(INDEX('Ввод данных'!G:G,SMALL(IF('Ввод данных'!$A$3:$A$101=1,ROW('Ввод данных'!$A$3:$A$101)),ROW(L6))),\"\")","v":""}]
[null,null,{"$f":"IFERROR(INDEX('Ввод данных'!E:E,SMALL(IF('Ввод данных'!$A$3:$A$101=1,ROW('Ввод данных'!$A$3:$A$101)),ROW(C7))),\"\")","v":""},{"$f":"IFERROR(INDEX('Ввод данных'!F:F,SMALL(IF('Ввод данных'!$A$3:$A$101=1,ROW('Ввод данных'!$A$3:$A$101)),ROW(D7))),\"\")","v":""},{"$f":"IFERROR(INDEX('Ввод данных'!H:H,SMALL(IF('Ввод данных'!$A$3:$A$101=1,ROW('Ввод данных'!$A$3:$A$101)),ROW(E7))),\"\")","v":""},{"$f":"IFERROR(INDEX('Ввод данных'!I:I,SMALL(IF('Ввод данных'!$A$3:$A$101=1,ROW('Ввод данных'!$A$3:$A$101)),ROW(F7))),\"\")","v":""},{"$f":"IFERROR(INDEX('Ввод данных'!J:J,SMALL(IF('Ввод данных'!$A$3:$A$101=1,ROW('Ввод данных'!$A$3:$A$101)),ROW(G7))),\"\")","v":""},{"$f":"IFERROR(INDEX('Ввод данных'!K:K,SMALL(IF('Ввод данных'!$A$3:$A$101=1,ROW('Ввод данных'!$A$3:$A$101)),ROW(H7))),\"\")","v":""},{"$f":"IFERROR(INDEX('Ввод данных'!L:L,SMALL(IF('Ввод данных'!$A$3:$A$101=1,ROW('Ввод данных'!$A$3:$A$101)),ROW(I7))),\"\")","v":""},{"$f":"IFERROR(INDEX('Ввод данных'!N:N,SMALL(IF('Ввод данных'!$A$3:$A$101=1,ROW('Ввод данных'!$A$3:$A$101)),ROW(J7))),\"\")","v":""},{"$f":"IFERROR(INDEX('Ввод данных'!M:M,SMALL(IF('Ввод данных'!$A$3:$A$101=1,ROW('Ввод данных'!$A$3:$A$101)),ROW(K7))),\"\")","v":""},{"$f":"IFERROR(INDEX('Ввод данных'!G:G,SMALL(IF('Ввод данных'!$A$3:$A$101=1,ROW('Ввод данных'!$A$3:$A$101)),ROW(L7))),\"\")","v":""}]
[null,null,{"$f":"IFERROR(INDEX('Ввод данных'!E:E,SMALL(IF('Ввод данных'!$A$3:$A$101=1,ROW('Ввод данных'!$A$3:$A$101)),ROW(C8))),\"\")","v":""},{"$f":"IFERROR(INDEX('Ввод данных'!F:F,SMALL(IF('Ввод данных'!$A$3:$A$101=1,ROW('Ввод данных'!$A$3:$A$101)),ROW(D8))),\"\")","v":""},{"$f":"IFERROR(INDEX('Ввод данных'!H:H,SMALL(IF('Ввод данных'!$A$3:$A$101=1,ROW('Ввод данных'!$A$3:$A$101)),ROW(E8))),\"\")","v":""},{"$f":"IFERROR(INDEX('Ввод данных'!I:I,SMALL(IF('Ввод данных'!$A$3:$A$101=1,ROW('Ввод данных'!$A$3:$A$101)),ROW(F8))),\"\")","v":""},{"$f":"IFERROR(INDEX('Ввод данных'!J:J,SMALL(IF('Ввод данных'!$A$3:$A$101=1,ROW('Ввод данных'!$A$3:$A$101)),ROW(G8))),\"\")","v":""},{"$f":"IFERROR(INDEX('Ввод данных'!K:K,SMALL(IF('Ввод данных'!$A$3:$A$101=1,ROW('Ввод данных'!$A$3:$A$101)),ROW(H8))),\"\")","v":""},{"$f":"IFERROR(INDEX('Ввод данных'!L:L,SMALL(IF('Ввод данных'!$A$3:$A$101=1,ROW('Ввод данных'!$A$3:$A$101)),ROW(I8))),\"\")","v":""},{"$f":"IFERROR(INDEX('Ввод данных'!N:N,SMALL(IF('Ввод данных'!$A$3:$A$101=1,ROW('Ввод данных'!$A$3:$A$101)),ROW(J8))),\"\")","v":""},{"$f":"IFERROR(INDEX('Ввод данных'!M:M,SMALL(IF('Ввод данных'!$A$3:$A$101=1,ROW('Ввод данных'!$A$3:$A$101)),ROW(K8))),\"\")","v":""},{"$f":"IFERROR(INDEX('Ввод данных'!G:G,SMALL(IF('Ввод данных'!$A$3:$A$101=1,ROW('Ввод данных'!$A$3:$A$101)),ROW(L8))),\"\")","v":""}]
[null,null,{"$f":"IFERROR(INDEX('Ввод данных'!E:E,SMALL(IF('Ввод данных'!$A$3:$A$101=1,ROW('Ввод данных'!$A$3:$A$101)),ROW(C9))),\"\")","v":""},{"$f":"IFERROR(INDEX('Ввод данных'!F:F,SMALL(IF('Ввод данных'!$A$3:$A$101=1,ROW('Ввод данных'!$A$3:$A$101)),ROW(D9))),\"\")","v":""},{"$f":"IFERROR(INDEX('Ввод данных'!H:H,SMALL(IF('Ввод данных'!$A$3:$A$101=1,ROW('Ввод данных'!$A$3:$A$101)),ROW(E9))),\"\")","v":""},{"$f":"IFERROR(INDEX('Ввод данных'!I:I,SMALL(IF('Ввод данных'!$A$3:$A$101=1,ROW('Ввод данных'!$A$3:$A$101)),ROW(F9))),\"\")","v":""},{"$f":"IFERROR(INDEX('Ввод данных'!J:J,SMALL(IF('Ввод данных'!$A$3:$A$101=1,ROW('Ввод данных'!$A$3:$A$101)),ROW(G9))),\"\")","v":""},{"$f":"IFERROR(INDEX('Ввод данных'!K:K,SMALL(IF('Ввод данных'!$A$3:$A$101=1,ROW('Ввод данных'!$A$3:$A$101)),ROW(H9))),\"\")","v":""},{"$f":"IFERROR(INDEX('Ввод данных'!L:L,SMALL(IF('Ввод данных'!$A$3:$A$101=1,ROW('Ввод данных'!$A$3:$A$101)),ROW(I9))),\"\")","v":""},{"$f":"IFERROR(INDEX('Ввод данных'!N:N,SMALL(IF('Ввод данных'!$A$3:$A$101=1,ROW('Ввод данных'!$A$3:$A$101)),ROW(J9))),\"\")","v":""},{"$f":"IFERROR(INDEX('Ввод данных'!M:M,SMALL(IF('Ввод данных'!$A$3:$A$101=1,ROW('Ввод данных'!$A$3:$A$101)),ROW(K9))),\"\")","v":""},{"$f":"IFERROR(INDEX('Ввод данных'!G:G,SMALL(IF('Ввод данных'!$A$3:$A$101=1,ROW('Ввод данных'!$A$3:$A$101)),ROW(L9))),\"\")","v":""}]
[null,null,{"$f":"IFERROR(INDEX('Ввод данных'!E:E,SMALL(IF('Ввод данных'!$A$3:$A$101=1,ROW('Ввод данных'!$A$3:$A$101)),ROW(C10))),\"\")","v":""},{"$f":"IFERROR(INDEX('Ввод данных'!F:F,SMALL(IF('Ввод данных'!$A$3:$A$101=1,ROW('Ввод данных'!$A$3:$A$101)),ROW(D10))),\"\")","v":""},{"$f":"IFERROR(INDEX('Ввод данных'!H:H,SMALL(IF('Ввод данных'!$A$3:$A$101=1,ROW('Ввод данных'!$A$3:$A$101)),ROW(E10))),\"\")","v":""},{"$f":"IFERROR(INDEX('Ввод данных'!I:I,SMALL(IF('Ввод данных'!$A$3:$A$101=1,ROW('Ввод данных'!$A$3:$A$101)),ROW(F10))),\"\")","v":""},{"$f":"IFERROR(INDEX('Ввод данных'!J:J,SMALL(IF('Ввод данных'!$A$3:$A$101=1,ROW('Ввод данных'!$A$3:$A$101)),ROW(G10))),\"\")","v":""},{"$f":"IFERROR(INDEX('Ввод данных'!K:K,SMALL(IF('Ввод данных'!$A$3:$A$101=1,ROW('Ввод данных'!$A$3:$A$101)),ROW(H10))),\"\")","v":""},{"$f":"IFERROR(INDEX('Ввод данных'!L:L,SMALL(IF('Ввод данных'!$A$3:$A$101=1,ROW('Ввод данных'!$A$3:$A$101)),ROW(I10))),\"\")","v":""},{"$f":"IFERROR(INDEX('Ввод данных'!N:N,SMALL(IF('Ввод данных'!$A$3:$A$101=1,ROW('Ввод данных'!$A$3:$A$101)),ROW(J10))),\"\")","v":""},{"$f":"IFERROR(INDEX('Ввод данных'!M:M,SMALL(IF('Ввод данных'!$A$3:$A$101=1,ROW('Ввод данных'!$A$3:$A$101)),ROW(K10))),\"\")","v":""},{"$f":"IFERROR(INDEX('Ввод данных'!G:G,SMALL(IF('Ввод данных'!$A$3:$A$101=1,ROW('Ввод данных'!$A$3:$A$101)),ROW(L10))),\"\")","v":""}]
[null,null,{"$f":"IFERROR(INDEX('Ввод данных'!E:E,SMALL(IF('Ввод данных'!$A$3:$A$101=1,ROW('Ввод данных'!$A$3:$A$101)),ROW(C11))),\"\")","v":""},{"$f":"IFERROR(INDEX('Ввод данных'!F:F,SMALL(IF('Ввод данных'!$A$3:$A$101=1,ROW('Ввод данных'!$A$3:$A$101)),ROW(D11))),\"\")","v":""},{"$f":"IFERROR(INDEX('Ввод данных'!H:H,SMALL(IF('Ввод данных'!$A$3:$A$101=1,ROW('Ввод данных'!$A$3:$A$101)),ROW(E11))),\"\")","v":""},{"$f":"IFERROR(INDEX('Ввод данных'!I:I,SMALL(IF('Ввод данных'!$A$3:$A$101=1,ROW('Ввод данных'!$A$3:$A$101)),ROW(F11))),\"\")","v":""},{"$f":"IFERROR(INDEX('Ввод данных'!J:J,SMALL(IF('Ввод данных'!$A$3:$A$101=1,ROW('Ввод данных'!$A$3:$A$101)),ROW(G11))),\"\")","v":""},{"$f":"IFERROR(INDEX('Ввод данных'!K:K,SMALL(IF('Ввод данных'!$A$3:$A$101=1,ROW('Ввод данных'!$A$3:$A$101)),ROW(H11))),\"\")","v":""},{"$f":"IFERROR(INDEX('Ввод данных'!L:L,SMALL(IF('Ввод данных'!$A$3:$A$101=1,ROW('Ввод данных'!$A$3:$A$101)),ROW(I11))),\"\")","v":""},{"$f":"IFERROR(INDEX('Ввод данных'!N:N,SMALL(IF('Ввод данных'!$A$3:$A$101=1,ROW('Ввод данных'!$A$3:$A$101)),ROW(J11))),\"\")","v":""},{"$f":"IFERROR(INDEX('Ввод данных'!M:M,SMALL(IF('Ввод данных'!$A$3:$A$101=1,ROW('Ввод данных'!$A$3:$A$101)),ROW(K11))),\"\")","v":""},{"$f":"IFERROR(INDEX('Ввод данных'!G:G,SMALL(IF('Ввод данных'!$A$3:$A$101=1,ROW('Ввод данных'!$A$3:$A$101)),ROW(L11))),\"\")","v":""}]